bitfinex-derivatives/quotes_ETHF0:USTF0_20250912
["timestamp","ask_amount","ask_price","bid_price","bid_amount"]
[1757660631150,0.2102,4544.0,4543.9,0.97467947]
[1757660631954,1.48178248,4544.2,4544.1,0.7033]
[1757660632150,2.00993189,4544.2,4544.1,0.97467947]
[1757660632351,2.53223189,4544.2,4544.1,0.97437236]
[1757660633255,2.00408248,4544.2,4544.1,0.97437236]
[1757660634051,2.53175837,4544.2,4543.5,0.1231]
[1757660634247,1.48178248,4543.8,4543.7,0.7033]
[1757660634459,2.00408248,4543.8,4543.7,0.27088396]
[1757660637561,2.00408248,4543.8,4543.7,0.77318396]
[1757660638463,1.81850655,4543.8,4543.7,0.77318396]
[1757660640160,1.81850655,4543.8,4543.7,0.97418396]
[1757660640959,1.50610655,4543.8,4543.7,0.97418396]
[1757660641160,1.28450655,4544.1,4544.0,0.5072]
[1757660641360,1.28450655,4544.1,4544.0,0.8079]
[1757660641866,1.28450655,4544.1,4544.0,1.07841728]
[1757660643970,1.08600655,4544.3,4544.2,0.3877]
[1757660644269,1.28450655,4544.3,4544.2,0.6884]
[1757660645870,0.1182,4545.5,4544.2,0.6884]
[1757660645871,0.3067,4545.4,4544.7,0.3007]
[1757660646065,1.08600655,4544.8,4544.7,0.6884]
[1757660646461,1.28450655,4544.8,4544.7,0.6884]
[1757660647065,0.1985,4544.8,4544.7,0.6884]
[1757660647363,0.6986,4544.9,4544.8,0.6884]
[1757660647563,1.78460655,4544.9,4544.8,0.6884]
[1757660647764,1.78460655,4544.9,4544.8,0.3007]
[1757660647965,1.78460655,4544.9,4544.6,0.3007]
[1757660648168,1.78460655,4544.7,4544.6,0.4966]
[1757660648469,1.78460655,4544.7,4544.6,0.76674036]
[1757660648673,1.78460655,4544.7,4544.6,0.95854036]
[1757660649168,1.78460655,4544.7,4544.6,0.6884]
[1757660649559,1.78460655,4544.7,4544.6,0.95850867]
[1757660650265,1.78460655,4544.7,4544.6,0.6884]
[1757660650772,0.1985,4544.7,4544.6,0.95847691]
[1757660651465,1.28450655,4544.7,4544.6,0.6884]
[1757660652468,1.28450655,4544.7,4544.6,0.95848547]
[1757660652666,0.0806,4546.5,4544.6,0.95848547]
[1757660652667,0.3067,4545.9,4545.5,0.1195]
[1757660652861,0.3067,4546.3,4546.2,0.3877]
[1757660653068,0.1985,4546.4,4546.3,0.3007]
[1757660653267,0.1985,4546.4,4546.3,0.6884]
[1757660653462,0.1985,4546.6,4546.5,0.1195]
[1757660653671,1.28450655,4546.6,4546.5,0.8079]
[1757660654173,0.3067,4547.0,4546.9,0.3877]
[1757660654174,0.5052,4547.0,4546.9,0.3877]
[1757660654366,0.2875,4547.3,4547.2,0.6884]
[1757660654674,1.87360655,4547.3,4547.2,0.3007]
[1757660655064,1.78460655,4547.3,4547.2,0.3007]
[1757660655372,1.78460655,4547.3,4547.2,0.4966]
[1757660656175,1.78460655,4547.3,4547.2,0.3007]
[1757660659459,1.78460655,4547.3,4547.2,0.4966]
[1757660660469,0.1985,4547.3,4547.2,0.6884]
[1757660660667,0.1985,4547.6,4547.5,0.5072]
[1757660660977,0.1985,4547.6,4547.5,0.8079]
[1757660660978,1.28450655,4547.6,4547.5,0.8079]
[1757660661473,1.08600655,4547.8,4547.5,0.5072]
[1757660661675,1.08600655,4547.8,4547.7,0.6884]
[1757660662278,1.28450655,4547.8,4547.7,0.6884]
[1757660662471,1.47790655,4547.8,4547.7,0.6884]
[1757660662665,1.78460655,4547.8,4547.7,0.6884]
[1757660662976,1.78460655,4547.8,4547.7,0.3007]
[1757660663879,0.34979314,4548.9,4548.1,0.6884]
[1757660663880,1.78460655,4548.2,4548.1,0.6884]
[1757660664581,1.59120655,4548.8,4548.7,0.4966]
[1757660664772,0.3919,4548.8,4548.7,0.6884]
[1757660664970,1.47790655,4548.8,4548.7,0.6884]
[1757660665480,1.78460655,4548.8,4548.7,0.4966]
[1757660665677,1.78460655,4548.8,4548.1,0.3007]
[1757660665876,1.47790655,4548.2,4548.1,0.6884]
[1757660666181,1.47790655,4548.2,4547.5,0.1195]
[1757660666182,1.78460655,4548.2,4547.5,0.1195]
[1757660666371,1.08600655,4547.7,4547.6,0.95963139]
[1757660666570,1.28450655,4548.8,4548.7,0.6884]
[1757660666974,0.6986,4548.2,4548.1,0.4966]
[1757660667170,1.78460655,4548.2,4548.1,0.6884]
[1757660667471,1.47790655,4548.2,4548.1,0.6884]
[1757660667674,1.08600655,4548.8,4548.5,0.1227]
[1757660667876,1.18205021,4550.4,4548.5,0.1227]
[1757660667877,0.2853,4550.1,4548.9,0.2869]
[1757660668076,0.2853,4550.1,4548.6,0.44816013]
[1757660668077,0.0848,4551.0,4549.7,0.1962]
[1757660668374,0.0848,4551.0,4549.6,0.2869]
[1757660668375,0.393,4549.7,4549.6,0.2869]
[1757660668569,0.393,4549.7,4549.6,0.4831]
[1757660668772,0.6783,4549.7,4549.6,0.4831]
[1757660669568,0.6783,4549.7,4549.6,0.6761]
[1757660670167,1.08600655,4549.8,4549.6,0.3892]
[1757660670480,1.76430655,4549.8,4549.7,0.4831]
[1757660670682,1.76430655,4549.8,4549.1,0.2869]
[1757660670871,1.76430655,4549.2,4549.1,0.4831]
[1757660671067,1.76430655,4549.2,4549.1,0.6761]
[1757660671272,1.47900655,4549.2,4549.1,0.6761]
[1757660672877,0.2853,4549.6,4549.1,0.6761]
[1757660672878,1.08600655,4549.5,4549.1,0.6761]
[1757660673081,1.08600655,4549.5,4549.2,0.2869]
[1757660673281,1.28830655,4549.5,4549.4,0.6761]
[1757660673980,0.2023,4549.5,4549.4,0.6761]
[1757660674576,0.6783,4549.5,4549.4,0.6761]
[1757660674770,0.6783,4549.5,4549.4,0.4831]
[1757660675574,0.6783,4549.5,4549.0,0.1227]
[1757660675777,1.76430655,4549.1,4549.0,0.7988]
[1757660676675,1.76430655,4549.1,4548.6,0.2869]
[1757660676880,1.76430655,4548.7,4548.6,0.4831]
[1757660677084,0.115,4549.5,4548.6,0.6761]
[1757660677085,1.08600655,4549.0,4548.6,0.6761]
[1757660677282,1.08600655,4549.0,4548.7,0.2869]
[1757660677487,1.08600655,4549.0,4548.9,0.6761]
[1757660677982,0.2023,4549.1,4549.0,0.7988]
[1757660680085,1.37130655,4549.5,4549.0,0.7988]
[1757660680288,1.57360655,4549.5,4549.4,0.3892]
[1757660680490,1.01412588,4549.5,4549.4,0.6761]
[1757660680883,1.29705021,4550.5,4549.4,0.6761]
[1757660680884,0.2853,4549.9,4549.4,0.6761]
[1757660681186,0.2023,4549.9,4549.8,0.6761]
[1757660682080,0.2023,4549.9,4549.8,0.94762978]
[1757660682388,0.6783,4549.9,4549.8,0.94762978]
[1757660682577,1.20573976,4549.9,4549.8,0.94762978]
[1757660682777,1.20573976,4549.9,4549.8,0.75462978]
[1757660683178,0.6783,4549.9,4549.8,0.75462978]
[1757660683390,1.2058829,4549.9,4549.8,0.94762978]
[1757660684082,1.2058829,4549.9,4549.8,0.75462978]
[1757660685087,1.2058829,4549.9,4549.3,0.2869]
[1757660685288,0.6783,4549.5,4549.4,0.27191037]
[1757660685587,1.2058829,4549.5,4549.4,0.55881037]
[1757660685886,1.2058829,4549.5,4549.4,0.75501037]
[1757660686886,1.2058829,4549.5,4549.4,0.27191037]
[1757660687084,1.3208829,4549.5,4549.4,0.27191037]
[1757660687293,5.5406929,4549.5,4548.7,0.2869]
[1757660687589,0.6783,4548.9,4548.8,0.75535572]
[1757660687781,1.2058829,4548.9,4548.8,0.75535572]
[1757660689479,1.2058829,4548.9,4548.8,0.27225572]
[1757660694393,5.2058829,4548.9,4548.8,0.27225572]
[1757660694593,1.2058829,4548.9,4548.8,0.27225572]
[1757660695085,1.2058829,4548.9,4548.8,0.94835572]
[1757660695279,0.9205829,4548.9,4548.8,0.94835572]
[1757660695488,0.7298829,4548.9,4548.8,0.94835572]
[1757660695780,0.5275829,4548.9,4548.8,0.94835572]
[1757660696185,0.5275829,4548.9,4548.8,4.94835572]
[1757660696383,0.6783,4549.9,4549.8,0.6761]
[1757660696585,1.20446579,4549.9,4549.8,0.94835572]
[1757660696784,0.91916579,4549.9,4549.8,0.94835572]
[1757660697190,1.20446579,4549.9,4549.8,0.94835572]
[1757660698788,0.52616579,4549.9,4549.8,0.94835572]
[1757660699888,0.72776579,4549.9,4549.8,0.94835572]
[1757660700494,1.23656579,4549.9,4549.8,0.94835572]
[1757660700990,0.52616579,4549.9,4549.8,0.94835572]
[1757660701194,1.38365021,4550.7,4550.6,0.7012]
[1757660701390,0.72777152,4550.7,4550.6,0.97345572]
[1757660701987,0.52617152,4550.7,4550.6,0.97345572]
[1757660702295,0.7104,4551.3,4551.2,0.4001]
[1757660702489,1.23629766,4551.3,4551.2,0.97345572]
[1757660702687,0.92009766,4551.3,4551.2,0.97345572]
[1757660702891,1.23629766,4551.3,4551.2,0.97345572]
[1757660703884,1.23599044,4551.3,4551.2,0.97345572]
[1757660704093,0.7104,4551.3,4551.2,0.97345572]
[1757660706494,0.3942,4551.3,4551.2,0.97345572]
[1757660706894,0.7104,4551.3,4551.2,0.9726714]
[1757660708902,0.3942,4551.3,4551.2,0.9726714]
[1757660709602,0.2016,4551.3,4551.2,0.9726714]
[1757660710299,0.2016,4551.3,4551.2,0.7012]
[1757660712099,0.7104,4551.3,4551.2,0.7012]
[1757660712300,0.7104,4551.6,4551.5,0.8193]
[1757660713799,0.3942,4551.6,4551.5,0.8193]
[1757660714301,0.3162,4552.3,4551.5,0.5182]
[1757660714497,0.4842,4552.2,4552.1,0.2061]
[1757660714693,1.02009,4552.2,4552.1,0.5072]
[1757660714899,0.8004,4552.2,4552.1,0.5072]
[1757660716204,20.4,4552.9,4552.8,0.194]
[1757660716205,0.2016,4552.9,4552.8,0.194]
[1757660716503,0.2016,4552.9,4552.8,0.7012]
[1757660717695,0.3942,4552.9,4552.8,0.7012]
[1757660717899,0.7104,4552.9,4552.8,0.7012]
[1757660719605,0.7104,4552.9,4552.8,0.5072]
[1757660719803,0.7104,4552.9,4552.6,0.3011]
[1757660720006,0.3162,4552.8,4552.1,0.5072]
[1757660720200,0.3942,4552.2,4552.1,0.7012]
[1757660720401,0.7104,4552.2,4552.1,0.5072]
[1757660722212,4.7104,4552.2,4551.6,0.3011]
[1757660722510,0.1142,4552.0,4551.1,0.3011]
[1757660722705,0.3162,4551.9,4551.1,0.3011]
[1757660722906,0.2016,4551.2,4551.1,0.7012]
[1757660723105,0.2016,4551.2,4551.1,0.97119938]
[1757660724899,0.2016,4551.6,4551.5,0.3242]
[1757660725105,0.3162,4551.9,4551.5,0.5182]
[1757660725413,0.115,4552.5,4551.9,0.7012]
[1757660725414,0.4236,4552.0,4551.9,0.7012]
[1757660725812,0.6162,4552.0,4551.9,0.7012]
[1757660726213,0.9324,4552.0,4551.9,0.7012]
[1757660727713,1.4597283,4552.0,4551.9,0.7012]
[1757660728209,0.4236,4552.0,4551.9,0.7012]
[1757660728420,0.222,4552.0,4551.9,0.97219979]
[1757660728908,0.2934,4552.7,4552.0,0.1214]
[1757660729107,0.6754,4552.7,4552.6,0.698]
[1757660729306,1.20302709,4552.7,4552.6,0.698]
[1757660729910,0.90962709,4552.7,4552.6,0.698]
[1757660730105,31.9414,4553.1,4553.0,0.1214]
[1757660730312,0.52796485,4553.1,4553.0,1.09046076]
[1757660731811,0.71800152,4553.1,4553.0,1.09046076]
[1757660732610,1.20320152,4553.1,4553.0,1.09046076]
[1757660732809,1.20320152,4553.1,4553.0,0.27106076]
[1757660733421,0.382,4552.8,4552.7,0.299]
[1757660733615,0.6754,4552.8,4552.7,0.5700779]
[1757660733814,0.6754,4552.8,4552.7,0.7692779]
[1757660735014,0.6754,4552.8,4552.7,0.2710779]
[1757660735220,1.20278009,4552.8,4552.7,0.2710779]
[1757660735716,1.20278009,4552.8,4552.1,0.299]
[1757660735928,0.6754,4552.3,4552.2,0.76926396]
[1757660737410,0.6754,4552.3,4552.2,0.27106396]
[1757660737821,1.20278543,4552.3,4552.2,0.27106396]
[1757660738619,1.20278543,4552.3,4551.5,0.1181]
[1757660738811,0.1902,4551.7,4551.6,0.67015781]
[1757660739419,0.1902,4551.7,4551.6,0.96915781]
[1757660740514,0.382,4551.7,4551.6,0.96915781]
[1757660740716,0.6754,4551.7,4551.6,0.96915781]
[1757660741117,0.382,4551.7,4551.6,0.96915781]
[1757660741315,0.1902,4551.7,4551.6,0.96915781]
[1757660741511,5.64456548,4551.7,4550.7,0.299]
[1757660741816,0.6754,4550.8,4550.7,0.4982]
[1757660742407,0.6754,4550.8,4550.7,0.698]
[1757660743613,0.6754,4550.8,4550.7,0.4982]
[1757660744616,0.6754,4550.8,4550.5,0.1214]
[1757660744617,0.1902,4550.1,4550.0,0.8194]
[1757660744816,0.6754,4550.1,4550.0,0.8194]
[1757660745324,0.6754,4550.1,4550.0,0.4982]
[1757660745517,0.1902,4549.6,4549.5,0.8194]
[1757660745824,0.2934,4550.4,4549.6,0.299]
[1757660746420,0.1902,4549.7,4549.6,0.698]
[1757660748519,0.2934,4550.2,4549.7,0.299]
[1757660748727,0.1902,4550.1,4550.0,0.8194]
[1757660749927,0.382,4550.1,4550.0,0.8194]
[1757660750422,0.6754,4550.1,4550.0,0.8194]
[1757660751228,0.382,4550.1,4550.0,0.8194]
[1757660752120,0.6754,4550.1,4550.0,0.8194]
[1757660752521,0.6754,4550.1,4550.0,0.698]
[1757660753331,0.6754,4550.1,4550.0,0.4982]
[1757660753828,0.382,4550.1,4550.0,0.8194]
[1757660754440,0.8984,4551.3,4551.2,0.1992]
[1757660754627,0.605,4551.3,4550.5,0.1214]
[1757660754829,0.1902,4550.7,4550.6,0.698]
[1757660755028,0.2934,4550.6,4550.0,0.1214]
[1757660755234,0.1902,4550.2,4550.1,0.698]
[1757660755432,0.1902,4550.6,4550.5,0.8194]
[1757660756433,0.382,4550.6,4550.5,0.8194]
[1757660758942,0.6714,4550.6,4550.0,0.1214]
[1757660759132,0.4007,4550.1,4550.0,0.5193]
[1757660759341,0.1147,4550.5,4550.0,0.5193]
[1757660759342,0.224,4550.5,4550.0,0.5193]
[1757660759735,0.4331,4550.5,4550.4,0.6981]
[1757660761748,0.4007,4550.1,4550.0,0.4919]
[1757660761946,0.6901,4550.1,4550.0,0.4919]
[1757660762247,0.2091,4550.1,4550.0,0.8207]
[1757660762744,0.5134,4550.5,4550.0,0.8207]
[1757660762948,0.5134,4550.5,4550.0,0.5205]
[1757660763142,0.9141,4550.5,4550.4,0.6981]
[1757660764445,0.6247,4550.5,4550.4,0.6981]
[1757660765151,0.9141,4550.5,4550.4,0.6981]
[1757660766551,1.99689714,4550.5,4550.4,0.4919]
[1757660766753,1.99689714,4550.5,4550.0,0.1226]
[1757660766754,2.11159714,4550.5,4550.1,0.3002]
[1757660767051,1.77289714,4550.2,4550.1,0.4919]
[1757660768955,2.30039117,4550.2,4549.1,0.3002]
[1757660769153,1.08279714,4549.2,4549.1,0.9179]
[1757660769453,1.08279714,4549.2,4549.1,0.6981]
[1757660771749,0.5134,4549.8,4549.1,0.6981]
[1757660771952,1.08279714,4549.4,4549.2,0.3002]
[1757660772150,0.0024,4550.1,4550.0,0.8207]
[1757660772352,1.97291464,4551.6,4550.0,0.8207]
[1757660772353,0.4985,4551.3,4551.2,0.3979]
[1757660772651,0.4985,4551.3,4551.2,0.6981]
[1757660773253,0.2894,4551.8,4551.3,0.3002]
[1757660773447,0.2172,4551.7,4551.6,0.6981]
[1757660774152,0.4263,4551.7,4551.6,0.6981]
[1757660774663,0.2091,4551.7,4551.6,0.6981]
[1757660776459,0.4985,4551.7,4551.6,0.6981]
[1757660778852,0.2091,4551.7,4551.6,0.6981]
[1757660779067,0.5134,4552.0,4551.6,0.3979]
[1757660779260,0.2091,4551.8,4551.7,0.3002]
[1757660779559,0.224,4552.0,4551.6,0.6981]
[1757660779560,0.4985,4551.7,4551.6,0.6981]
[1757660781057,0.2172,4552.1,4552.0,0.8207]
[1757660781357,0.5134,4552.4,4552.0,0.8207]
[1757660781557,0.6901,4552.1,4552.0,0.1917]
[1757660781761,0.2894,4551.9,4551.0,0.1226]
[1757660781963,0.2894,4551.9,4551.1,0.3002]
[1757660782165,0.2172,4551.8,4551.1,0.3002]
[1757660782350,0.6179,4551.8,4551.7,0.1917]
[1757660782554,0.9073,4551.8,4551.7,0.4919]
[1757660783255,0.6901,4551.8,4551.7,0.4919]
[1757660784367,0.1194,4551.5,4550.6,0.3002]
[1757660784557,0.2894,4551.4,4550.7,0.3002]
[1757660784756,0.6901,4551.4,4551.3,0.1917]
[1757660787563,0.6901,4551.4,4551.1,0.3002]
[1757660787564,0.6901,4551.4,4550.6,0.3002]
[1757660788169,0.6901,4551.4,4551.3,0.1917]
[1757660788855,0.6901,4551.4,4551.0,0.3047]
[1757660789061,0.2861,4551.3,4550.5,0.4273]
[1757660789261,0.2861,4551.3,4550.6,0.3047]
[1757660789462,0.2861,4551.3,4550.5,0.1226]
[1757660789463,0.7,4551.3,4551.2,0.2082]
[1757660792674,0.7,4551.3,4551.2,0.5129]
[1757660794376,1.78236606,4551.3,4551.2,0.5129]
[1757660795270,0.7,4551.3,4551.2,0.7199]
[1757660795470,0.223,4551.7,4551.3,0.3047]
[1757660795671,0.223,4551.7,4551.6,0.7199]
[1757660795672,0.4921,4551.7,4551.6,0.7199]
[1757660796176,0.7,4551.7,4551.6,0.7199]
[1757660798477,0.7,4551.7,4551.6,0.2082]
[1757660798971,0.7,4551.7,4551.6,0.5129]
[1757660799768,0.7,4551.7,4551.1,0.3047]
[1757660799976,1.78236606,4551.3,4551.2,0.7199]
[1757660801584,1.08236606,4551.3,4551.2,0.7199]
[1757660802779,1.28836606,4551.3,4551.2,0.7199]
[1757660803374,1.08236606,4551.3,4551.2,0.7199]
[1757660803575,1.28836606,4551.3,4551.2,0.7199]
[1757660803778,0.2861,4551.5,4551.2,0.7199]
[1757660803970,0.2861,4551.5,4551.3,0.3047]
[1757660803971,1.36846606,4551.5,4551.3,0.3047]
[1757660804176,1.57446606,4551.5,4551.4,0.4152]
[1757660804384,0.2172,4551.7,4551.6,0.7199]
[1757660804882,0.9172,4551.7,4551.6,0.7199]
[1757660805781,0.9172,4551.7,4551.6,0.2082]
[1757660806479,0.7,4551.4,4551.3,0.5129]
[1757660806677,1.78236606,4551.4,4551.3,0.2082]
[1757660810186,2.31052284,4551.4,4551.0,0.3047]
[1757660810390,1.78236606,4551.1,4551.0,0.5129]
[1757660810576,0.7,4551.1,4550.5,0.1226]
[1757660810782,0.8256,4551.0,4550.9,0.5129]
[1757660811278,0.8256,4551.0,4550.9,0.7199]
[1757660811585,0.7,4551.0,4550.9,0.7199]
[1757660814891,0.1256,4551.5,4550.9,0.7199]
[1757660815095,0.2172,4551.7,4551.3,0.4152]
[1757660815096,1.02042227,4551.4,4551.3,0.4152]
[1757660815390,1.02042227,4551.4,4551.3,0.7199]
[1757660815779,1.22832227,4551.4,4551.3,0.7199]
[1757660816188,0.2172,4551.7,4551.0,0.1155]
[1757660816189,0.2172,4551.7,4551.6,0.7199]
[1757660816889,0.2861,4552.6,4551.6,0.9396]
[1757660817090,0.4921,4552.6,4552.5,0.4152]
[1757660817392,0.4921,4552.6,4552.5,0.7199]
[1757660817780,0.2861,4552.6,4552.5,0.7199]
[1757660818293,0.6754,4552.6,4552.5,0.4152]
[1757660818484,0.6754,4552.6,4552.5,0.2082]
[1757660819093,0.1148,4552.5,4551.6,0.3107]
[1757660819391,1.47166606,4552.2,4552.1,0.7086]
[1757660819791,1.78476606,4552.2,4552.1,0.7086]
[1757660820280,1.78476606,4552.2,4552.1,0.3979]
[1757660820487,0.3131,4552.2,4552.1,0.7086]
[1757660820689,0.3131,4552.4,4552.2,0.3107]
[1757660820997,0.3131,4552.4,4552.3,0.7086]
[1757660821187,1.39546606,4552.4,4552.3,0.7086]
[1757660821384,1.59266606,4552.4,4552.3,0.7086]
[1757660822193,1.78476606,4552.4,4552.3,0.7086]
[1757660822488,0.7024,4552.4,4552.3,0.7086]
[1757660823888,0.7024,4552.4,4552.3,0.3979]
[1757660824090,0.7024,4552.4,4552.3,0.7086]
[1757660824390,0.3228,4553.5,4553.4,0.2053]
[1757660824584,0.5149,4553.5,4553.4,0.2053]
[1757660824790,0.5149,4553.5,4552.5,0.0723]
[1757660824991,0.5149,4553.5,4552.6,0.3107]
[1757660824992,0.3131,4553.3,4552.6,0.3107]
[1757660825296,2.08268463,4553.0,4552.6,0.3107]
[1757660825495,2.08268463,4553.0,4552.9,0.2053]
[1757660826995,2.08268463,4553.0,4552.1,0.3107]
[1757660827296,1.38028463,4553.0,4552.1,0.53036]
[1757660827495,0.3131,4552.9,4552.2,0.21966]
[1757660827795,0.3131,4552.9,4552.8,0.2053]
[1757660827796,0.7024,4552.9,4552.8,0.2053]
[1757660829400,0.7024,4552.9,4552.0,0.1673]
[1757660829401,0.1148,4552.5,4552.4,0.2053]
[1757660829595,0.5041,4552.5,4552.4,0.2053]
[1757660830100,0.8172,4552.5,4552.4,0.2053]
[1757660830494,0.8172,4552.5,4552.0,0.3107]
[1757660830888,0.8172,4552.5,4551.6,0.3107]
[1757660831092,0.8172,4552.5,4552.4,0.2053]
[1757660831300,0.8172,4552.5,4552.4,0.7086]
[1757660832597,0.8172,4552.5,4552.4,0.3979]
[1757660833395,0.8172,4552.5,4552.0,0.3107]
[1757660833606,0.7024,4551.7,4551.6,0.7086]
[1757660833804,0.7024,4551.7,4551.1,0.223]
[1757660834099,0.3893,4551.2,4551.1,0.3979]
[1757660834299,0.3131,4551.4,4551.2,0.3107]
[1757660834495,0.3131,4551.4,4551.1,0.3979]
[1757660834496,0.3131,4551.4,4551.3,0.7086]
[1757660835501,0.5103,4551.4,4551.3,0.7086]
[1757660835699,0.7024,4551.4,4551.3,0.3979]
[1757660835903,0.7024,4551.4,4551.3,0.2053]
[1757660836896,0.7024,4551.4,4550.5,0.0723]
[1757660837098,0.1972,4550.7,4550.6,0.92832999]
[1757660837302,0.5103,4550.7,4550.6,0.7086]
[1757660837603,0.5103,4550.7,4550.6,0.92834999]
[1757660837802,0.5103,4550.7,4550.6,0.7086]
[1757660838596,0.3131,4550.7,4550.6,0.7086]
[1757660839804,0.5103,4550.7,4550.6,0.7086]
[1757660840905,0.7024,4550.7,4550.6,0.7086]
[1757660843010,0.7024,4550.7,4550.6,0.9316]
[1757660843411,0.7024,4550.7,4550.6,0.7086]
[1757660843612,0.7024,4550.7,4550.6,0.9316]
[1757660844003,0.7024,4550.7,4550.6,0.6209]
[1757660845007,0.7024,4550.7,4550.6,0.9316]
[1757660847014,0.5041,4551.0,4550.9,0.3979]
[1757660847204,0.5041,4551.0,4550.9,0.2053]
[1757660847406,0.5041,4551.0,4550.6,0.223]
[1757660847612,0.7024,4550.9,4550.8,0.2053]
[1757660847912,0.6909,4550.8,4550.7,0.223]
[1757660848114,0.6909,4550.8,4550.7,0.4326]
[1757660852415,0.6909,4550.8,4550.7,0.2096]
[1757660855716,0.2989,4550.7,4549.8,0.3074]
[1757660855925,0.1153,4550.0,4549.9,0.223]
[1757660856220,0.5073,4550.0,4549.9,0.4326]
[1757660856613,0.8062,4550.0,4549.9,0.4326]
[1757660856917,0.8062,4550.0,4549.7,0.223]
[1757660857118,0.8062,4550.0,4549.9,0.2096]
[1757660858013,0.8062,4550.0,4549.5,0.3074]
[1757660858215,0.8062,4550.0,4549.8,0.223]
[1757660859011,0.4142,4550.0,4549.9,0.4144]
[1757660859216,0.2989,4551.2,4550.5,0.3797]
[1757660859412,0.4137,4551.5,4551.1,0.4144]
[1757660859611,0.4972,4551.5,4551.4,0.7218]
[1757660859820,0.6909,4551.5,4551.4,0.7218]
[1757660860032,0.8062,4551.5,4551.4,0.7218]
[1757660860623,0.8062,4551.5,4551.4,0.4144]
[1757660863024,0.1153,4552.0,4551.5,0.3074]
[1757660863225,0.8062,4552.0,4551.9,0.7218]
[1757660863426,0.6909,4552.0,4551.9,0.7218]
[1757660864928,0.8062,4552.0,4551.3,0.217]
[1757660865127,0.8062,4552.0,4551.3,0.223]
[1757660865430,0.8062,4552.0,4551.4,0.2096]
[1757660865431,0.8062,4551.5,4551.4,0.2096]
[1757660866831,0.8062,4551.5,4551.4,0.4144]
[1757660867029,0.8062,4551.5,4551.4,0.7218]
[1757660868226,0.8062,4551.5,4551.4,0.4144]
[1757660868835,0.4972,4551.5,4551.4,0.7218]
[1757660869030,0.2989,4551.5,4551.4,0.7218]
[1757660870629,0.1153,4552.0,4551.9,0.4144]
[1757660870834,0.5073,4552.0,4551.9,0.4144]
[1757660871226,0.8062,4552.0,4551.9,0.4144]
[1757660872837,0.8062,4552.0,4551.5,0.3074]
[1757660873037,0.8062,4552.0,4551.1,0.3074]
[1757660873230,0.1983,4551.3,4551.2,0.6374]
[1757660873426,0.4972,4551.3,4551.2,0.9448]
[1757660877141,0.1153,4551.5,4551.2,0.9448]
[1757660877142,0.2989,4551.5,4551.2,0.6374]
[1757660877443,0.2989,4551.5,4551.4,0.7218]
[1757660877940,0.1153,4552.0,4551.4,0.4144]
[1757660878140,0.5049,4552.0,4551.9,0.7208]
[1757660880840,0.6256,4552.0,4551.9,0.7208]
[1757660881842,0.8226,4552.0,4551.9,0.7208]
[1757660883143,0.8226,4552.0,4551.9,0.405]
[1757660885534,0.8226,4552.0,4550.2,34.78059149]
[1757660885535,0.4046,4550.9,4550.8,2.18315489]
[1757660885737,1.78358674,4550.9,4550.3,0.3158]
[1757660885938,0.8226,4550.5,4550.4,0.2056]
[1757660886137,0.8226,4550.5,4550.4,0.405]
[1757660886346,0.8226,4550.5,4550.4,0.9438]
[1757660886544,0.8226,4550.5,4550.4,0.628]
[1757660887447,0.8226,4550.5,4550.4,0.4286]
[1757660888042,0.8226,4550.5,4550.3,0.223]
[1757660888944,0.8226,4550.5,4549.7,0.3158]
[1757660889154,0.7019,4549.8,4549.7,0.2056]
[1757660895852,0.7019,4549.8,4549.7,0.405]
[1757660896152,0.8226,4550.5,4550.4,0.2056]
[1757660897458,0.8226,4550.5,4550.4,0.7208]
[1757660898550,0.418,4551.0,4550.5,0.4308]
[1757660898862,0.5049,4551.0,4550.9,1.80248674]
[1757660899052,0.5049,4551.0,4550.9,2.02548674]
[1757660900456,0.8226,4551.0,4550.9,2.02548674]
[1757660900658,0.8226,4551.0,4550.9,1.80248674]
[1757660900964,0.8226,4551.0,4550.9,2.02548674]
[1757660902358,0.7019,4551.0,4550.9,2.02548674]
[1757660902560,0.5049,4551.0,4550.9,2.02548674]
[1757660905661,0.6256,4551.0,4550.9,2.02548674]
[1757660905859,0.8226,4551.0,4550.9,0.9438]
[1757660906162,0.8226,4551.0,4550.9,0.628]
[1757660906756,0.7019,4551.0,4550.9,2.02548674]
[1757660907759,0.7019,4551.0,4550.9,0.9438]
[1757660908471,0.2095,4551.0,4550.9,0.7208]
[1757660908660,0.8273,4551.0,4550.9,0.2056]
[1757660909168,0.8273,4551.0,4550.8,0.223]
[1757660909658,0.8273,4551.0,4550.3,0.2974]
[1757660909659,0.7064,4550.9,4550.3,0.2974]
[1757660909859,0.8273,4550.5,4550.4,0.4169]
[1757660910355,0.3008,4550.4,4549.7,1.08168674]
[1757660910559,0.5103,4549.9,4549.8,0.6163]
[1757660910767,0.5103,4549.9,4549.8,0.9137]
[1757660911862,0.3304,4550.5,4550.4,0.3933]
[1757660912168,0.5103,4550.5,4550.4,1.77238674]
[1757660912866,0.5103,4550.5,4550.4,1.99538674]
[1757660915563,0.8273,4550.5,4550.4,0.6163]
[1757660916058,0.5265,4550.5,4550.4,0.223]
[1757660916264,0.8273,4550.5,4550.4,0.223]
[1757660916562,0.8273,4550.5,4550.4,0.4169]
[1757660917661,0.7064,4549.9,4549.8,0.6907]
[1757660917861,0.7064,4549.9,4549.8,0.9137]
[1757660919869,0.7064,4549.9,4549.8,0.3933]
[1757660920071,0.7064,4549.9,4549.8,0.6163]
[1757660922268,0.7064,4549.9,4549.8,0.9137]
[1757660923173,0.7064,4549.9,4549.8,0.6163]
[1757660923475,0.7064,4549.9,4549.8,0.223]
[1757660924671,0.7064,4549.9,4549.4,1.37908674]
[1757660924874,0.8273,4549.5,4549.4,1.77238674]
[1757660925068,0.62121202,4549.5,4549.4,1.99538674]